{"text_format":"3","workbook":"xlsx","n_sheets":1,"sheets":["Tabelle1"],"not_rendered":{"images":1,"defined_names":1},"read":"whole","date_system":"1900"}

{"sheet":"Tabelle1","index":0,"n_rows":49,"n_cols":10,"rows_kept":49,"merged":[[0,0,0,2],[1,0,1,2],[2,0,2,2],[2,4,2,9],[3,0,3,2],[3,5,3,9],[4,0,4,2],[4,5,4,9],[5,5,5,9],[6,0,6,9],[7,0,7,9],[8,0,8,9],[10,0,10,9],[11,0,11,2],[11,4,11,9],[12,1,12,2],[12,4,12,9],[13,1,13,2],[14,1,14,2],[16,0,16,2],[16,4,16,9],[17,0,19,2],[17,4,17,8],[17,9,19,9],[18,5,18,6],[18,7,18,8],[20,0,20,3],[21,0,21,3],[22,0,22,3],[23,0,23,3],[24,0,24,3],[25,0,25,3],[26,0,26,3],[27,0,27,3],[28,0,28,3],[29,0,29,3],[30,0,30,3],[31,0,31,3],[32,0,32,3],[33,0,33,3],[37,0,39,2],[37,8,39,8],[37,9,39,9],[40,0,40,8],[46,0,46,2],[46,4,46,9],[47,0,47,2],[47,4,47,9],[48,0,48,9]]}
{"$rows_empty":7}
["Abrechnung von Fahr- und Telefonspesen für Katechetinnen und Katecheten"]
["Bitte bis Ende des Semesters auf dem Dienstweg der/dem Personalverantwortlichen Ihrer Kirchgemeinde zustellen und unterschreiben lassen."]
[]
[]
[{"$nulls":4},"Kirchgemeinde:"]
["Name/\nVorname: ……………………………………………………………………………………………….."]
[]
["Schuljahr:",{"$nulls":3},"1. Semester"]
[{"$nulls":4},"2. Semester"]
[]
["bewilligte Fahrspesen \n(bitte Belege für ÖV-Ticket beilegen und Fahrt einzeln notieren)",{"$nulls":3},"Transportmittel",{"$nulls":4},"Total Kosten\nin CHF"]
[{"$nulls":4},"ÖV","Auto/Mobility",null,"Motorrad/Roller"]
[{"$nulls":4},"Betrag ","Anzahl km","Betrag ","Anzahl km","Betrag"]
[{"$nulls":6},{"$f":"MROUND(+F21*0.7,0.05)","v":0},null,{"$f":"MROUND(+H21*0.35,0.05)","v":0},{"$f":"+E21+G21+I21","v":0}]
[{"$nulls":6},{"$f":"MROUND(+F22*0.7,0.05)","v":0},null,{"$f":"MROUND(+H22*0.35,0.05)","v":0},{"$f":"+E22+G22+I22","v":0}]
[{"$nulls":6},0,null,0,0]
[{"$nulls":6},0,null,0,0]
[{"$nulls":6},0,null,0,0]
[{"$nulls":6},0,null,0,0]
[{"$nulls":6},0,null,0,0]
[{"$nulls":6},0,null,0,0]
[{"$nulls":6},0,null,0,0]
[{"$nulls":6},0,null,0,0]
[{"$nulls":6},0,null,0,0]
[{"$nulls":6},0,null,0,0]
[{"$nulls":6},0,null,0,0]
[{"$nulls":6},{"$f":"MROUND(+F34*0.7,0.05)","v":0},null,{"$f":"MROUND(+H34*0.35,0.05)","v":0},0]
[null,null,"Total Kosten",null,{"$f":"SUM(E21:E21)","v":0},{"$f":"SUM(F21:F34)","v":0},{"$f":"SUM(G21:G34)","v":0},0,0,{"$f":"E35+G35+I35","v":0}]
[]
[]
["Spesen Telefongespräche",{"$nulls":8},"Total Kosten \nin CHF"]
[]
[]
["Gespräche pro Semester"]
[null,null,"Total Kosten",{"$nulls":6},{"$f":"J41","v":0}]
[]
[]
["Total Kosten Fahr- und Telefongespräch-Spesen",{"$nulls":8},{"$f":"J35+J42","v":{"v":0,"d":"0.00"}}]
[]
["Belege:\nFahrspesenbelege sind zwingend beizulegen. \nBei Inhaber/innen eines General- und Liberoabonnements sind die Fahrverbindungen mit dem Fahrpreis beizulegen.\n",{"$nulls":3},"Katechet/in: \nDatum/Unterschrift \n\n"]
[" Kostenübernahme:\nöffentliche Verkehrsmittel:  ermässigten Ticketkosten der 2. Klasse                                     \nAuto / Mobility:                     70 Rappen/km\nMotorrad / Roller:                 35 Rappen/km",{"$nulls":3},"Kirchgemeinde:\nDatum / Unterschrift                                  Datum / Unterschrift\n\n\n\nKatechese-Verantwortliche/r                              Personalverantwortliche/r"]
["PV, Art. 35 Abs.1: Für Fahrten mit öffentlichen Verkehrsmitteln besteht in der Regel ein Anspruch auf eine Fahrkarte zweiter Klasse zum ermässigten Tarif.\nPV, Art 35 Abs 2: Alle Mitarbeitenden im Monatslohn erhalten den ihrem Beschäftigungsgrad entsprechenden Anteil einer Mobilitätspauschale vergütet."]